fUST/lending_fUST_20240802
["ID","MTS","AMOUNT","RATE_DAILY","PERIOD"]
[333823146,1722531048310,-514.47,0.00013972,2]
[333823147,1722531048319,-500.0,0.00013972,2]
[333823148,1722531048329,-627.19,0.00013972,2]
[333823149,1722531048339,-500.0,0.00013972,2]
[333823150,1722531048348,-500.0,0.00013972,2]
[333823151,1722531048358,-500.0,0.00013972,2]
[333823152,1722531048368,-1152.24,0.00013972,2]
[333823153,1722531048379,-500.0,0.00013972,2]
[333823154,1722531048388,-500.0,0.00013972,2]
[333823155,1722531048398,-1681.86,0.00013972,2]
[333823156,1722531048408,-500.0,0.00013972,2]
[333823157,1722531048417,-500.0,0.00013972,2]
[333823158,1722531048427,-500.0,0.00013972,2]
[333823159,1722531048437,-500.0,0.00013972,2]
[333823160,1722531048447,-500.0,0.00013972,2]
[333823161,1722531048457,-500.0,0.00013972,2]
[333823162,1722531048466,-500.0,0.00013972,2]
[333823163,1722531048476,-500.0,0.00013972,2]
[333823164,1722531048486,-500.0,0.00013972,2]
[333823165,1722531048497,-500.0,0.00013972,2]
[333823166,1722531048507,-500.0,0.00013972,2]
[333823167,1722531048516,-500.0,0.00013972,2]
[333823168,1722531048526,-500.0,0.00013972,2]
[333823169,1722531048536,-500.0,0.00013972,2]
[333823170,1722531048545,-500.0,0.00013972,2]
[333823171,1722531048554,-500.0,0.00013972,2]
[333823172,1722531048564,-500.0,0.00013972,2]
[333823173,1722531048573,-500.0,0.00013972,2]
[333823174,1722531048582,-500.0,0.00013972,2]
[333823175,1722531048592,-500.0,0.00013972,2]
[333823176,1722531048603,-500.0,0.00013972,2]
[333823177,1722531048612,-500.0,0.00013972,2]
[333823178,1722531048622,-500.0,0.00013972,2]
[333823179,1722531048632,-1000.89,0.00013972,2]
[333823180,1722531048641,-500.0,0.00013972,2]
[333823181,1722531048651,-500.0,0.00013972,2]
[333823182,1722531048660,-540.0,0.00013972,2]
[333823183,1722531048670,-500.0,0.00013972,2]
[333823184,1722531048680,-500.0,0.00013972,2]
[333823185,1722531048690,-1208.24,0.00013972,2]
[333823186,1722531048700,-500.0,0.00013972,2]
[333823187,1722531048709,-500.0,0.00013972,2]
[333823188,1722531048718,-200.0,0.00013973,2]
[333823189,1722531048727,-500.0,0.0001403,2]
[333823190,1722531048737,-1573.23,0.0001403,2]
[333823191,1722531048747,-500.0,0.0001404,2]
[333823192,1722531048757,-1573.23,0.0001404,2]
[333823193,1722531048766,-30000.0,0.00014041,2]
[333823194,1722531048776,-3696.00681866,0.00014045,2]
[333823195,1722531048785,-500.0,0.00014235,2]
[333823196,1722531048795,-1573.23,0.00014235,2]
[333823197,1722531048891,-500.0,0.00014245,2]
[333823198,1722531048901,-1573.23,0.00014245,2]
[333823199,1722531048912,-1573.23,0.00014245,2]
[333823200,1722531048921,-500.0,0.00014246,2]
[333823201,1722531048931,-500.0,0.00014246,2]
[333823202,1722531048940,-500.0,0.00014246,2]
[333823203,1722531048950,-500.0,0.00014246,2]
[333823204,1722531048960,-500.0,0.00014246,2]
[333823205,1722531048970,-500.0,0.00014246,2]
[333823206,1722531048979,-500.0,0.00014246,2]
[333823207,1722531048990,-500.0,0.00014246,2]
[333823208,1722531049000,-506.53640605,0.00014246,2]
[333823209,1722531049010,-500.0,0.00014246,2]
[333823210,1722531049019,-500.0,0.00014246,2]
[333823211,1722531049028,-500.0,0.00014246,2]
[333823212,1722531049037,-500.0,0.00014246,2]
[333823213,1722531049047,-500.0,0.00014246,2]
[333823214,1722531049058,-500.0,0.00014246,2]
[333823215,1722531049067,-621.66820482,0.00014246,2]
[333823216,1722531049078,-500.0,0.00014246,2]
[333823217,1722531049087,-500.0,0.00014246,2]
[333823218,1722531049096,-500.0,0.00014246,2]
[333823219,1722531049107,-500.0,0.00014246,2]
[333823220,1722531049116,-500.0,0.00014246,2]
[333823221,1722531049126,-500.0,0.00014246,2]
[333823222,1722531049136,-500.0,0.00014246,2]
[333823223,1722531049146,-500.0,0.00014246,2]
[333823224,1722531049158,-500.0,0.00014246,2]
[333823225,1722531049167,-500.0,0.00014246,2]
[333823226,1722531049178,-500.0,0.00014246,2]
[333823227,1722531049188,-500.0,0.00014246,2]
[333823228,1722531049198,-500.0,0.00014246,2]
[333823229,1722531049210,-500.0,0.00014246,2]
[333823230,1722531049220,-500.0,0.00014246,2]
[333823231,1722531049230,-500.0,0.00014246,2]
[333823232,1722531049240,-500.0,0.00014246,2]
[333823233,1722531049252,-500.0,0.00014246,2]
[333823234,1722531049261,-500.0,0.00014246,2]
[333823235,1722531049270,-500.0,0.00014246,2]
[333823236,1722531049279,-736.29,0.00014246,2]
[333823237,1722531049288,-500.0,0.00014246,2]
[333823238,1722531049297,-500.0,0.00014246,2]
[333823239,1722531049307,-500.0,0.00014246,2]
[333823240,1722531049319,-1330.89,0.00014246,2]
[333823241,1722531049329,-500.0,0.00014246,2]
[333823242,1722531049338,-506.33901798,0.00014246,2]
[333823243,1722531049348,-646.53,0.00014246,2]
[333823244,1722531049357,-625.76,0.00014246,2]
[333823245,1722531049367,-500.0,0.00014246,2]
[333823246,1722531049376,-500.0,0.00014246,2]
[333823247,1722531049386,-2178.6,0.00014246,2]
[333823248,1722531049396,-500.0,0.00014246,2]
[333823249,1722531049405,-500.0,0.00014246,2]
[333823250,1722531049414,-500.0,0.00014246,2]
[333823251,1722531049423,-500.0,0.00014246,2]
[333823252,1722531049432,-500.0,0.00014246,2]
[333823253,1722531049442,-500.0,0.00014246,2]
[333823254,1722531049453,-500.0,0.00014246,2]
[333823255,1722531049464,-500.0,0.00014246,2]
[333823256,1722531049473,-500.0,0.00014246,2]
[333823257,1722531049483,-500.0,0.00014246,2]
[333823258,1722531049493,-500.0,0.00014246,2]
[333823259,1722531049503,-500.0,0.00014246,2]
[333823260,1722531049513,-518.15,0.00014246,2]
[333823261,1722531049522,-500.0,0.00014246,2]
[333823262,1722531049531,-514.47,0.00014246,2]
[333823263,1722531049541,-500.0,0.00014246,2]
[333823264,1722531049551,-500.0,0.00014246,2]
[333823265,1722531049561,-627.19,0.00014246,2]
[333823266,1722531049572,-500.0,0.00014246,2]
[333823267,1722531049581,-1152.24,0.00014246,2]
[333823268,1722531049591,-500.0,0.00014246,2]
[333823269,1722531049600,-1681.86,0.00014246,2]
[333823270,1722531049610,-500.0,0.00014246,2]
[333823271,1722531049620,-500.0,0.00014246,2]
[333823272,1722531049629,-500.0,0.00014246,2]
[333823273,1722531049638,-500.0,0.00014246,2]
[333823274,1722531049648,-503.84237986,0.00014246,2]
[333823275,1722531049657,-500.0,0.00014246,2]
[333823276,1722531049667,-500.0,0.00014246,2]
[333823277,1722531049677,-500.0,0.00014246,2]
[333823278,1722531049686,-500.0,0.00014246,2]
[333823279,1722531049696,-500.0,0.00014246,2]
[333823280,1722531049705,-500.0,0.00014246,2]
[333823281,1722531049715,-500.0,0.00014246,2]
[333823282,1722531049725,-500.0,0.00014246,2]
[333823283,1722531049734,-500.0,0.00014246,2]
[333823284,1722531049743,-500.0,0.00014246,2]
[333823285,1722531049756,-500.0,0.00014246,2]
[333823286,1722531049766,-500.0,0.00014246,2]
[333823287,1722531049775,-500.0,0.00014246,2]
[333823288,1722531049784,-500.0,0.00014246,2]
[333823289,1722531049794,-1000.89,0.00014246,2]
[333823290,1722531049804,-500.0,0.00014246,2]
[333823291,1722531049814,-540.0,0.00014246,2]
[333823292,1722531049823,-500.0,0.00014246,2]
[333823293,1722531049832,-1208.24,0.00014246,2]
[333823294,1722531049841,-500.0,0.00014246,2]
[333823295,1722531049850,-500.0,0.00014246,2]
[333823296,1722531049860,-635.839452,0.00014247,2]
[333823297,1722531049869,-500.0,0.00014509,2]
[333823298,1722531049879,-1573.23,0.00014509,2]
[333823299,1722531049889,-500.0,0.00014519,2]
[333823300,1722531049900,-1573.23,0.00014519,2]
[333823301,1722531049912,-1573.23,0.00014519,2]
[333823302,1722531049923,-1573.23,0.00014519,2]
[333823303,1722531049933,-1573.23,0.00014519,2]
[333823304,1722531049944,-1573.3875,0.00014519,2]
[333823305,1722531049954,-500.0,0.0001452,2]
[333823306,1722531049964,-500.0,0.0001452,2]
[333823307,1722531049974,-500.0,0.0001452,2]
[333823308,1722531049986,-500.0,0.0001452,2]
[333823309,1722531049998,-266.55639978,0.0001452,2]
[333823310,1722531050025,-233.44360022,0.0001452,2]
[333823311,1722531050034,-500.0,0.0001452,2]
[333823312,1722531050045,-500.0,0.0001452,2]
[333823313,1722531050054,-500.0,0.0001452,2]
[333823314,1722531050064,-241.24765849,0.0001452,2]
[333823315,1722531050249,459.55767833,0.00012119,2]
[333823316,1722531062320,176.87428863,0.00012121,2]
[333823317,1722531062346,235.98621301,0.00012121,2]
[333823318,1722531070513,188.18564016,0.00012121,2]
[333823319,1722531080646,196.41966399,0.00012121,2]
[333823320,1722531095726,539.73103599,0.00012121,2]
[333823323,1722531158606,157.36499795,0.0001,2]
[333823328,1722531169825,412.86050164,0.0001,2]
[333823329,1722531172028,188.18564016,9.999e-05,2]
[333823330,1722531179988,156.69192504,9.999e-05,2]
[333823332,1722531184975,412.86050164,0.0001,2]
[333823334,1722531202141,196.41966399,9.999e-05,2]
[333823335,1722531215201,1629.26928721,0.0001,2]
[333823336,1722531259087,154.69833824,0.0001,2]
[333823340,1722531271611,188.18564016,9.999e-05,2]
[333823341,1722531272969,156.69192504,9.999e-05,2]
[333823342,1722531287135,196.41966399,9.999e-05,2]
[333823343,1722531299959,412.86050164,0.0001,2]
[333823345,1722531359084,154.69833824,0.0001,2]
[333823346,1722531365991,156.69192504,9.999e-05,2]
[333823347,1722531380660,341.63294937,9.999e-05,2]
[333823348,1722531384578,188.18564016,9.999e-05,2]
[333823349,1722531398536,188.18564016,9.999e-05,2]
[333823350,1722531407843,412.86050164,0.0001,2]
[333823351,1722531422839,412.86050164,0.0001,2]
[333823353,1722531451186,154.69833824,0.0001,2]
[333823354,1722531466990,156.69192504,9.999e-05,2]
[333823356,1722531514537,188.18564016,9.999e-05,2]
[333823357,1722531532851,412.86050164,0.0001,2]
[333823358,1722531543590,252.78997592,0.0001,2]
[333823361,1722531559985,156.99893096,9.999e-05,2]
[333823362,1722531580931,244.78359005,9.999e-05,2]
[333823364,1722531615552,188.18564016,9.999e-05,2]
[333823365,1722531639854,246.44839928,0.0001,2]
[333823366,1722531650366,154.69833824,9.999e-05,2]
[333823367,1722531681929,244.78359005,9.999e-05,2]
[333823368,1722531705575,244.2770184,9.999e-05,2]
[333823369,1722531746881,154.69833824,9.999e-05,2]
[333823370,1722531747955,154.69833824,9.999e-05,2]
[333823371,1722531764370,154.69833824,9.999e-05,2]
[333823372,1722531775936,244.78359005,9.999e-05,2]
[333823373,1722531782724,154.69833824,9.999e-05,2]
[333823375,1722531842674,160.12324259,9.999e-05,2]
[333823376,1722531849453,246.69977343,9.999e-05,2]
[333823377,1722531851937,244.78359005,9.999e-05,2]
[333823378,1722531882380,154.69833824,9.999e-05,2]
[333823379,1722531888698,154.69833824,9.999e-05,2]
[333823382,1722531920679,154.69833824,0.0001,2]
[333823383,1722531939656,160.12324259,9.999e-05,2]
[333823384,1722531946941,244.78359005,9.999e-05,2]
[333823385,1722531954925,209.81495165,9.999e-05,2]
[333823386,1722531991395,276.63266667,9.999e-05,2]
[333823387,1722531991723,1298.0,0.00025,60]
[333823388,1722531995712,154.69833824,9.999e-05,2]
[333823389,1722532019694,154.69833824,0.0001,2]
[333823390,1722532032154,-166.666666,0.00011965,2]
[333823391,1722532032181,-95.38427031,0.0001212,2]
[333823392,1722532034121,-149.39931974,0.0001212,2]
[333823393,1722532034144,-209.81495165,0.0001212,2]
[333823394,1722532034166,-164.000601,0.00012587,2]
[333823395,1722532034190,-164.000601,0.00012646,2]
[333823396,1722532034223,-164.000601,0.00012706,2]
[333823397,1722532034246,-46.96506486,0.00012766,2]
[333823398,1722532034667,160.12324259,9.999e-05,2]
[333823399,1722532035352,-117.03553614,0.00012766,2]
[333823400,1722532035374,-164.000601,0.00012825,2]
[333823401,1722532035397,-141.01592351,0.00012885,2]
[333823402,1722532039943,244.78359005,9.999e-05,2]
[333823403,1722532109208,154.69833824,9.999e-05,2]
[333823404,1722532113206,154.69833824,0.0001,2]
[333823405,1722532115703,154.69833824,0.0001,2]
[333823406,1722532128937,209.81495165,9.999e-05,2]
[333823407,1722532132668,160.12324259,9.999e-05,2]
[333823408,1722532150123,-22.98467749,0.00012885,2]
[333823409,1722532150147,-164.000601,0.00012945,2]
[333823410,1722532150169,-169.093228,0.00012986,2]
[333823411,1722532150191,-300.0,0.00012999,2]
[333823412,1722532150212,-1503.48007958,0.00013,2]
[333823413,1722532150947,244.78359005,9.999e-05,2]
[333823414,1722532153140,-154.69833824,0.00012121,2]
[333823415,1722532153162,-30.77671944,0.00013,2]
[333823416,1722532156117,-3046.40933716,0.00013,2]
[333823417,1722532158937,209.81495165,9.999e-05,2]
[333823418,1722532165713,154.69833824,0.00012121,2]
[333823419,1722532169112,-26207.89662002,0.00013,2]
[333823420,1722532169135,-164.000601,0.00013004,2]
[333823421,1722532169157,-164.000601,0.00013064,2]
[333823422,1722532169289,-164.000601,0.00013123,2]
[333823423,1722532169315,-164.000601,0.00013183,2]
[333823424,1722532176155,160.12324259,0.00012121,2]
[333823427,1722532198459,244.78359005,0.00012121,2]
[333823469,1722532232598,-164.000601,0.00013243,2]
[333823471,1722532232610,-102.19949499,0.00013596,2]
[333823472,1722532232622,-64.46717101,0.00013596,2]
[333823473,1722532232632,-290.96583334,0.00013598,2]
[333823474,1722532232641,-2823.79318865,0.00013598,2]
[333823475,1722532232651,-401.99788956,0.00013598,7]
[333823497,1722532238416,-805.00211044,0.00013598,7]
[333823499,1722532238426,-527.09552675,0.000136,2]
[333823501,1722532238437,-983.54,0.00013687,2]
[333823503,1722532238448,-50235.05199212,0.00013688,2]
[333823509,1722532238505,-37676.05838158,0.00013688,2]
[333823510,1722532238514,-983.54,0.00013697,2]
[333823511,1722532238524,-983.54,0.00013697,2]
[333823513,1722532238537,-983.54,0.00013697,2]
[333823515,1722532238547,-983.54,0.00013697,2]
[333823517,1722532238557,-500.0,0.00013698,2]
[333823519,1722532238567,-500.0,0.00013698,2]
[333823521,1722532238577,-549.01148261,0.00013698,2]
[333823523,1722532238587,-506.24815418,0.00013698,2]
[333823525,1722532238597,-500.0,0.00013698,2]
[333823527,1722532238607,-500.0,0.00013698,2]
[333823529,1722532238616,-500.0,0.00013698,2]
[333823531,1722532238626,-500.0,0.00013698,2]
[333823533,1722532238636,-511.79569878,0.00013698,2]
[333823534,1722532238646,-500.0,0.00013698,2]
[333823536,1722532238655,-500.0,0.00013698,2]
[333823537,1722532238665,-503.13608892,0.00013698,2]
[333823538,1722532238675,-500.0,0.00013698,2]
[333823539,1722532238685,-500.0,0.00013698,2]
[333823540,1722532238695,-500.0,0.00013698,2]
[333823541,1722532238705,-217.18052133,0.00013698,2]
[333823542,1722532238714,-500.0,0.00013698,2]
[333823543,1722532238723,-500.0,0.00013698,2]
[333823544,1722532238733,-291.20466938,0.00013698,2]
[333823545,1722532238742,-402.99362953,0.00013698,2]
[333823546,1722532238752,-500.0,0.00013698,2]
[333823547,1722532238762,-500.0,0.00013698,2]
[333823548,1722532238771,-500.0,0.00013698,2]
[333823549,1722532238781,-500.0,0.00013698,2]
[333823550,1722532238793,-500.0,0.00013698,2]
[333823551,1722532238802,-315.32000538,0.00013698,2]
[333823552,1722532238811,-500.63230799,0.00013698,2]
[333823553,1722532238821,-504.37203134,0.00013698,2]
[333823554,1722532238830,-500.0,0.00013698,2]
[333823555,1722532238839,-500.35601503,0.00013698,2]
[333823556,1722532238848,-500.0,0.00013698,2]
[333823557,1722532238858,-28.63101395,0.00013698,2]
[333823558,1722532238994,-471.36898605,0.00013698,2]
[333823559,1722532239003,-97.15230384,0.00013698,2]
[333823560,1722532239021,-402.84769616,0.00013698,2]
[333823561,1722532239030,-500.0,0.00013698,2]
[333823562,1722532239042,-500.0,0.00013698,2]
[333823563,1722532239051,-500.0,0.00013698,2]
[333823564,1722532239062,-500.6897106,0.00013698,2]
[333823565,1722532239071,-500.0,0.00013698,2]
[333823566,1722532239080,-421.52259324,0.00013698,2]
[333823573,1722532240545,-78.47740676,0.00013698,2]
[333823574,1722532240555,-500.0,0.00013698,2]
[333823575,1722532240564,-162.0,0.00013698,2]
[333823576,1722532240574,-500.0,0.00013698,2]
[333823577,1722532240583,-500.0,0.00013698,2]
[333823578,1722532240592,-500.0,0.00013698,2]
[333823579,1722532240602,-500.0,0.00013698,2]
[333823580,1722532240611,-500.0,0.00013698,2]
[333823581,1722532240621,-614.74755836,0.00013698,2]
[333823582,1722532240630,-346.78063274,0.00013698,2]
[333823583,1722532240642,-153.21936726,0.00013698,2]
[333823584,1722532240652,-504.02155593,0.00013698,2]
[333823585,1722532240663,-226.36361409,0.00013698,2]
[333823586,1722532240672,-500.0,0.00013698,2]
[333823587,1722532240682,-500.0,0.00013698,2]
[333823588,1722532240691,-234.64530731,0.00013698,2]
[333823589,1722532240701,-500.0,0.00013698,2]
[333823590,1722532240710,-500.0,0.00013698,2]
[333823591,1722532240720,-346.45307311,0.00013698,2]
[333823592,1722532240729,-500.0,0.00013698,2]
[333823593,1722532240738,-500.0,0.00013698,2]
[333823594,1722532240748,-309.44049425,0.00013698,2]
[333823595,1722532240760,-190.55950575,0.00013698,2]
[333823596,1722532240770,-219.31235135,0.00013698,2]
[333823597,1722532240779,-500.0,0.00013698,2]
[333823598,1722532240792,-500.0,0.00013698,2]
[333823599,1722532240801,-500.0,0.00013698,2]
[333823600,1722532240810,-500.0,0.00013698,2]
[333823601,1722532240819,-500.0,0.00013698,2]
[333823602,1722532240829,-500.0,0.00013698,2]
[333823603,1722532240838,-500.0,0.00013698,2]
[333823604,1722532240847,-500.0,0.00013698,2]
[333823605,1722532240857,-500.0,0.00013698,2]
[333823606,1722532240867,-506.28422072,0.00013698,2]
[333823607,1722532240877,-522.2480063,0.00013698,2]
[333823608,1722532240886,-500.0,0.00013698,2]
[333823609,1722532240895,-500.0,0.00013698,2]
[333823610,1722532240905,-500.0,0.00013698,2]
[333823611,1722532240914,-500.0,0.00013698,2]
[333823612,1722532240923,-500.0,0.00013698,2]
[333823613,1722532240933,-500.0,0.00013698,2]
[333823614,1722532240942,-500.0,0.00013698,2]
[333823615,1722532240952,-500.0,0.00013698,2]
[333823616,1722532240961,-500.0,0.00013698,2]
[333823617,1722532240970,-500.0,0.00013698,2]
[333823618,1722532240980,-583.17618753,0.00013698,2]
[333823619,1722532240990,-500.0,0.00013698,2]
[333823620,1722532240999,-500.0,0.00013698,2]
[333823621,1722532241009,-500.0,0.00013698,2]
[333823622,1722532241018,-504.14708175,0.00013698,2]
[333823623,1722532241027,-615.73239655,0.00013698,2]
[333823624,1722532241039,-451.62531356,0.00013698,2]
[333823625,1722532241048,-500.0,0.00013698,2]
[333823626,1722532241058,-177.25788204,0.00013698,2]
[333823627,1722532241067,-243.20500918,0.00013698,2]
[333823628,1722532241076,-644.27507829,0.00013698,2]
[333823629,1722532241085,-500.0,0.00013698,2]
[333823630,1722532241096,-579.64285278,0.00013698,2]
[333823631,1722532241106,-500.0,0.00013698,2]
[333823632,1722532241116,-500.0,0.00013698,2]
[333823633,1722532241126,-500.0,0.00013698,2]
[333823634,1722532241135,-500.0,0.00013698,2]
[333823635,1722532241145,-500.0,0.00013698,2]
[333823636,1722532241157,-500.0,0.00013698,2]
[333823637,1722532241167,-500.0,0.00013698,2]
[333823638,1722532241176,-500.0,0.00013698,2]
[333823639,1722532241186,-500.0,0.00013698,2]
[333823640,1722532241197,-500.0,0.00013698,2]
[333823641,1722532241207,-500.0,0.00013698,2]
[333823642,1722532241217,-500.0,0.00013698,2]
[333823643,1722532241227,-500.0,0.00013698,2]
[333823644,1722532241236,-500.0,0.00013698,2]
[333823645,1722532241246,-500.0,0.00013698,2]
[333823646,1722532241256,-500.0,0.00013698,2]
[333823647,1722532241265,-500.0,0.00013698,2]
[333823648,1722532241274,-500.0,0.00013698,2]
[333823649,1722532241284,-500.0,0.00013698,2]
[333823650,1722532241297,-500.0,0.00013698,2]
[333823651,1722532241306,-500.0,0.00013698,2]
[333823652,1722532241316,-501.10914025,0.00013698,2]
[333823653,1722532241327,-500.0,0.00013698,2]
[333823654,1722532241339,-500.0,0.00013698,2]
[333823655,1722532241348,-500.0,0.00013698,2]
[333823656,1722532241357,-500.0,0.00013698,2]
[333823657,1722532241366,-500.0,0.00013698,2]
[333823658,1722532241376,-150.0,0.00013698,2]
[333823659,1722532241386,-500.0,0.00013698,2]
[333823660,1722532241396,-500.0,0.00013698,2]
[333823661,1722532241406,-426.635913,0.00013698,2]
[333823662,1722532241418,-500.0,0.00013698,2]
[333823663,1722532241428,-500.0,0.00013698,2]
[333823664,1722532241437,-500.0,0.00013698,2]
[333823665,1722532241447,-500.0,0.00013698,2]
[333823666,1722532241456,-500.0,0.00013698,2]
[333823667,1722532241466,-500.0,0.00013698,2]
[333823668,1722532241475,-173.0145936,0.00013698,2]
[333823669,1722532241485,-500.0,0.00013698,2]
[333823670,1722532241496,-500.0,0.00013698,2]
[333823671,1722532241507,-500.0,0.00013698,2]
[333823672,1722532241519,-504.51120884,0.00013698,2]
[333823673,1722532241528,-500.0,0.00013698,2]
[333823674,1722532241624,-500.0,0.00013698,2]
[333823675,1722532241635,-500.0,0.00013698,2]
[333823676,1722532241645,-500.0,0.00013698,2]
[333823677,1722532241654,-506.12596428,0.00013698,2]
[333823678,1722532241664,-502.51666468,0.00013698,2]
[333823679,1722532241673,-500.0,0.00013698,2]
[333823680,1722532241684,-500.0,0.00013698,2]
[333823681,1722532241693,-500.0,0.00013698,2]
[333823682,1722532241702,-500.0,0.00013698,2]
[333823683,1722532241713,-502.49796531,0.00013698,2]
[333823684,1722532241722,-500.0,0.00013698,2]
[333823685,1722532241732,-500.0,0.00013698,2]
[333823686,1722532241742,-500.0,0.00013698,2]
[333823687,1722532241751,-500.0,0.00013698,2]
[333823688,1722532241761,-500.0,0.00013698,2]
[333823689,1722532241772,-228.18172325,0.00013698,2]
[333823690,1722532241782,-516.36497258,0.00013698,2]
[333823691,1722532241796,-500.0,0.00013698,2]
[333823692,1722532241806,-500.0,0.00013698,2]
[333823693,1722532241816,-500.0,0.00013698,2]
[333823694,1722532241826,-516.35918229,0.00013698,2]
[333823695,1722532241835,-500.0,0.00013698,2]
[333823696,1722532241845,-500.0,0.00013698,2]
[333823697,1722532241855,-500.0,0.00013698,2]
[333823698,1722532241864,-500.0,0.00013698,2]
[333823699,1722532241874,-500.0,0.00013698,2]
[333823700,1722532241884,-500.0,0.00013698,2]
[333823701,1722532241894,-555.47260942,0.00013698,2]
[333823702,1722532241903,-500.0,0.00013698,2]
[333823703,1722532241913,-620.65085225,0.00013698,2]
[333823704,1722532241923,-500.0,0.00013698,2]
[333823705,1722532241932,-500.0,0.00013698,2]
[333823706,1722532241941,-503.631483,0.00013698,2]
[333823707,1722532241951,-500.0,0.00013698,2]
[333823708,1722532241961,-500.0,0.00013698,2]
[333823709,1722532241971,-500.0,0.00013698,2]
[333823710,1722532241982,-500.0,0.00013698,2]
[333823711,1722532241992,-500.0,0.00013698,2]
[333823712,1722532242002,-496.97214854,0.00013698,2]
[333823713,1722532242012,-500.0,0.00013698,2]
[333823714,1722532242022,-500.0,0.00013698,2]
[333823715,1722532242031,-500.0,0.00013698,2]
[333823716,1722532242047,-500.0,0.00013698,2]
[333823717,1722532242057,-500.0,0.00013698,2]
[333823718,1722532242067,-500.0,0.00013698,2]
[333823719,1722532242077,-500.0,0.00013698,2]
[333823720,1722532242086,-500.0,0.00013698,2]
[333823721,1722532242096,-501.44362308,0.00013698,2]
[333823722,1722532242106,-508.43280894,0.00013698,2]
[333823723,1722532242115,-500.0,0.00013698,2]
[333823724,1722532242125,-500.0,0.00013698,2]
[333823725,1722532242135,-511.70907281,0.00013698,2]
[333823726,1722532242145,-500.0,0.00013698,2]
[333823727,1722532242154,-500.0,0.00013698,2]
[333823728,1722532242165,-490.75332376,0.00013698,2]
[333823729,1722532242174,-500.0,0.00013698,2]
[333823730,1722532242184,-426.81114179,0.00013698,2]
[333823731,1722532242194,-500.0,0.00013698,2]
[333823732,1722532242203,-500.0,0.00013698,2]
[333823733,1722532242213,-500.0,0.00013698,2]
[333823734,1722532242223,-500.0,0.00013698,2]
[333823735,1722532242233,-500.0,0.00013698,2]
[333823736,1722532242243,-532.72,0.00013698,2]
[333823737,1722532242253,-500.0,0.00013698,2]
[333823738,1722532242263,-531.29677964,0.00013698,2]
[333823739,1722532242273,-500.0,0.00013698,2]
[333823740,1722532242282,-500.0,0.00013698,2]
[333823741,1722532242299,-500.0,0.00013698,2]
[333823742,1722532242309,-500.0,0.00013698,2]
[333823743,1722532242318,-500.0,0.00013698,2]
[333823744,1722532242329,-500.0,0.00013698,2]
[333823745,1722532242340,-500.0,0.00013698,2]
[333823746,1722532242350,-500.0,0.00013698,2]
[333823747,1722532242359,-500.0,0.00013698,2]
[333823748,1722532242370,-500.0,0.00013698,2]
[333823749,1722532242380,-526.71112209,0.00013698,2]
[333823750,1722532242390,-500.0,0.00013698,2]
[333823751,1722532242399,-500.0,0.00013698,2]
[333823752,1722532242410,-500.0,0.00013698,2]
[333823753,1722532242421,-500.0,0.00013698,2]
[333823754,1722532242431,-437.59777935,0.00013698,2]
[333823755,1722532242441,-500.0,0.00013698,2]
[333823756,1722532242451,-500.0,0.00013698,2]